bitfinex-derivatives/quotes_SOLF0:USTF0_20260107
["timestamp","ask_amount","ask_price","bid_price","bid_amount"]
[1767756003050,2.122e-05,140.46,140.43,1.33361046]
[1767756003244,2.122e-05,140.46,140.45,1.33361046]
[1767756003746,2.122e-05,140.46,140.44,6.4125]
[1767756003747,6.4078,140.55,140.47,1.33361046]
[1767756003945,84.18,140.56,140.47,1.33361046]
[1767756005449,6.4077,140.55,140.47,7.74471046]
[1767756006643,6.408,140.54,140.45,6.4118]
[1767756006848,6.408,140.54,140.45,7.74541046]
[1767756009152,6.408,140.54,140.46,1.33361046]
[1767756009545,90.5875,140.56,140.47,1.33361046]
[1767756010651,6.4076,140.55,140.48,7.74421046]
[1767756010950,6.4076,140.55,140.48,1.33361046]
[1767756011449,1.42,140.55,140.45,1.33361046]
[1767756011657,183.8524,140.56,140.45,1.33361046]
[1767756012154,6.409,140.52,140.45,7.74551046]
[1767756012855,99.6837,140.54,140.43,6.4127]
[1767756013154,99.6837,140.54,140.43,7.74631046]
[1767756013454,6.4092,140.52,140.44,1.33361046]
[1767756014953,6.4097,140.51,140.44,1.33361046]
[1767756016955,6.41,140.5,140.42,1.33361046]
[1767756018546,8.11081054,140.5,140.42,7.74701046]
[1767756018854,1.70081054,140.51,140.43,1.33361046]
[1767756019158,1.70081054,140.53,140.45,1.33361046]
[1767756019454,1.70081054,140.54,140.45,1.33361046]
[1767756019846,1.70081054,140.54,140.47,7.74471046]
[1767756020050,1.70081054,140.55,140.48,1.33361046]
[1767756020248,92.28821054,140.56,140.48,1.33361046]
[1767756020555,84.18,140.56,140.48,1.33361046]
[1767756020756,6.4076,140.55,140.48,1.33361046]
[1767756023444,6.4076,140.55,140.49,1.33361046]
[1767756023849,90.5872,140.56,140.49,1.33361046]
[1767756028251,90.5872,140.56,140.49,7.74371046]
[1767756029160,84.18,140.56,140.49,7.74371046]
[1767756032763,84.18,140.56,140.49,1.33361046]
[1767756033361,84.18,140.56,140.47,6.4111]
[1767756033563,6.4076,140.55,140.47,7.82782523]
[1767756034263,6.4069,140.57,140.48,1.41672523]
[1767756035567,6.4069,140.57,140.49,7.82692523]
[1767756036068,84.14,140.6,140.5,1.41672523]
[1767756036759,12.806,140.66,140.5,1.41672523]
[1767756036760,4.17284101,140.68,140.54,1.41672523]
[1767756036959,84.14,140.66,140.54,1.41672523]
[1767756037170,84.14,140.66,140.57,6.4065]
[1767756037367,84.14,140.66,140.57,7.82322523]
[1767756037966,6.403,140.65,140.57,1.41672523]
[1767756038161,84.14,140.66,140.57,1.41672523]
[1767756039573,6.4035,140.64,140.57,1.41672523]
[1767756040171,84.14,140.66,140.57,1.41672523]
[1767756040568,183.7394,140.66,140.54,6.4077]
[1767756040773,187.91224101,140.66,140.55,1.41672523]
[1767756041071,6.4039,140.64,140.55,7.82422523]
[1767756041272,187.91224101,140.66,140.55,7.82422523]
[1767756041971,99.6114,140.64,140.53,7.82502523]
[1767756042366,99.6114,140.64,140.53,6.4083]
[1767756042570,6.4048,140.61,140.54,7.82462523]
[1767756045782,6.4041,140.63,140.55,7.82402523]
[1767756045967,2.653013,140.65,140.56,1.41672523]
[1767756047379,84.14,140.66,140.56,1.41672523]
[1767756047672,6.4035,140.64,140.57,6.4066]
[1767756048181,6.4039,140.63,140.56,1.41672523]
[1767756049171,6.4044,140.62,140.56,1.41672523]
[1767756049374,2.653013,140.63,140.54,1.41672523]
[1767756050663,6.4053,140.6,140.54,1.41672523]
[1767756052484,6.4058,140.59,140.51,7.82562523]
[1767756052677,6.4058,140.59,140.52,1.41672523]
[1767756052865,6.4058,140.59,140.52,7.82532523]
[1767756056483,6.4062,140.58,140.52,7.82532523]
[1767756056684,6.4062,140.58,140.51,6.4093]
[1767756057887,6.4062,140.58,140.51,7.82602523]
[1767756058075,6.4057,140.6,140.52,7.82552523]
[1767756058387,86.753013,140.61,140.53,1.41672523]
[1767756059585,6.4059,140.59,140.53,1.41672523]
[1767756061882,6.4059,140.59,140.52,6.4088]
[1767756062278,6.4053,140.6,140.51,1.40164605]
[1767756062484,84.1,140.61,140.52,1.40164605]
[1767756062876,84.1,140.61,140.54,1.40164605]
[1767756063186,2.653013,140.65,140.54,1.40164605]
[1767756063487,86.753013,140.65,140.55,1.40164605]
[1767756063889,6.4039,140.64,140.55,7.80904605]
[1767756064783,2.653013,140.63,140.55,1.40164605]
[1767756065587,2.653013,140.61,140.52,7.93528741]
[1767756065785,84.1,140.6,140.52,1.45556148]
[1767756065990,2.653013,140.59,140.52,1.45556148]
[1767756066288,6.4067,140.57,140.5,6.47972593]
[1767756066489,6.4067,140.57,140.49,7.93528741]
[1767756066788,6.4067,140.57,140.49,1.45556148]
[1767756066789,6.4076,140.55,140.49,1.45556148]
[1767756067688,2.653013,140.57,140.49,1.45556148]
[1767756067890,6.4081,140.54,140.46,14.34658741]
[1767756068295,6.4081,140.54,140.47,1.45556148]
[1767756068590,6.4086,140.53,140.45,6.47972593]
[1767756069394,6.4086,140.53,140.45,7.93528741]
[1767756069996,6.4086,140.53,140.46,1.45556148]
[1767756070695,6.4086,140.53,140.46,7.86716148]
[1767756072199,2.653013,140.55,140.47,1.45556148]
[1767756072405,86.773013,140.55,140.47,1.45556148]
[1767756072900,2.653013,140.53,140.45,6.47972593]
[1767756073301,2.653013,140.53,140.44,1.45556148]
[1767756073605,6.4094,140.51,140.44,1.45556148]
[1767756076803,6.4099,140.5,140.44,1.45556148]
[1767756077007,6.4099,140.5,140.43,6.4129]
[1767756078096,2.653013,140.51,140.43,7.86846148]
[1767756079707,9.062413,140.51,140.43,6.4129]
[1767756080509,2.653013,140.49,140.4,7.93528741]
[1767756080706,2.653013,140.49,140.4,1.45556148]
[1767756081604,9.063313,140.49,140.41,6.4139]
[1767756083193,9.063313,140.49,140.4,1.45556148]
[1767756084111,9.063313,140.49,140.4,7.86986148]
[1767756084304,9.063313,140.49,140.38,6.47972593]
[1767756084305,9.062813,140.51,140.41,1.45556148]
[1767756084510,93.202813,140.51,140.41,1.45556148]
[1767756084700,86.793013,140.51,140.42,1.45556148]
[1767756085004,2.653013,140.49,140.42,1.45556148]
[1767756085809,2.653013,140.49,140.39,1.45556148]
[1767756086707,6.4109,140.48,140.4,7.86966148]
[1767756088703,6.4112,140.47,140.4,7.86966148]
[1767756088903,2.653013,140.47,140.37,1.45556148]
[1767756090014,6.4121,140.46,140.37,1.45556148]
[1767756091610,6.4121,140.46,140.38,7.79230489]
[1767756092008,6.4121,140.45,140.38,7.79230489]
[1767756094906,9.064513,140.47,140.39,6.4147]
[1767756095103,6.4115,140.47,140.4,1.37700489]
[1767756095304,2.653013,140.52,140.4,1.37700489]
[1767756095504,84.16,140.51,140.4,1.37700489]
[1767756096115,84.16,140.51,140.42,7.79040489]
[1767756096316,84.16,140.51,140.42,1.37700489]
[1767756096619,12.8133,140.57,140.42,1.37700489]
[1767756096620,84.18,140.53,140.42,1.37700489]
[1767756097115,2.653013,140.52,140.42,1.37700489]
[1767756097829,6.4097,140.51,140.43,7.79000489]
[1767756099825,6.4097,140.51,140.43,7.79000489]
[1767756101126,6.4099,140.5,140.43,7.79000489]
[1767756101627,2.653013,140.51,140.4,1.37700489]
[1767756102334,86.813013,140.51,140.4,1.37700489]
[1767756102631,93.222713,140.51,140.43,6.4129]
[1767756103226,86.813013,140.51,140.43,6.4129]
[1767756104126,2.653013,140.49,140.39,1.37700489]
[1767756104729,1.7015166,140.47,140.4,7.79130489]
[1767756107321,8.1127166,140.47,140.4,7.79130489]
[1767756109221,8.1127166,140.47,140.4,14.25625467]
[1767756109834,6.4117,140.46,140.4,7.84195467]
[1767756110034,1.7015166,140.45,140.4,1.37700489]
[1767756110228,1.7015166,140.45,140.39,6.46494978]
[1767756111423,1.7015166,140.45,140.38,12.87994978]
[1767756111623,6.4121,140.45,140.38,12.87994978]
[1767756111832,8.1136166,140.45,140.38,12.87994978]
[1767756113225,8.1136166,140.45,140.38,14.25695467]
[1767756114335,8.1136166,140.45,140.39,6.46494978]
[1767756116133,1.7015166,140.43,140.36,7.84195467]
[1767756116336,84.18,140.45,140.37,7.84195467]
[1767756116541,84.18,140.45,140.38,1.37700489]
[1767756116731,8.1141166,140.44,140.38,1.37700489]
[1767756117133,1.7015166,140.44,140.38,1.37700489]
[1767756117737,6.413,140.43,140.36,12.88084978]
[1767756117943,6.413,140.43,140.36,6.46494978]
[1767756118145,6.413,140.43,140.36,7.84195467]
[1767756118437,8.1141166,140.44,140.38,1.37700489]
[1767756118745,6.4126,140.44,140.38,1.37700489]
[1767756120542,1.7015166,140.45,140.39,1.3994474]
[1767756120744,6.412,140.46,140.4,1.3994474]
[1767756121633,1.7015166,140.47,140.4,1.3994474]
[1767756121831,1.7015166,140.47,140.41,1.36599042]
[1767756122743,84.18,140.48,140.4,6.52497314]
[1767756122744,1.7015166,140.45,140.4,6.52497314]
[1767756123050,1.7015166,140.45,140.39,6.52497314]
[1767756124541,8.1136166,140.45,140.39,6.52497314]
[1767756128542,6.4121,140.45,140.39,6.52497314]
[1767756137257,6.4121,140.45,140.39,12.93977314]
[1767756139348,6.4121,140.45,140.39,14.30576356]
[1767756139954,6.4121,140.45,140.39,7.89096356]
[1767756141556,8.1132166,140.46,140.39,14.30576356]
[1767756142269,8.1132166,140.46,140.4,6.52497314]
[1767756142462,6.4121,140.45,140.4,6.52497314]
[1767756144066,1.7015166,140.46,140.4,6.52497314]
[1767756145559,6.4121,140.45,140.4,6.52497314]
[1767756146469,6.4126,140.44,140.4,6.52497314]
[1767756150868,6.4135,140.42,140.38,10.11091438]
[1767756151176,1.7015166,140.44,140.38,10.11091438]
[1767756152574,6.413,140.43,140.38,10.11091438]
[1767756153873,6.4135,140.42,140.38,1.36599042]
[1767756154971,6.4141,140.41,140.36,10.13782902]
[1767756156982,8.1159166,140.4,140.35,8.74492396]
[1767756157172,8.1159166,140.4,140.34,10.13782902]
[1767756159080,92.3154166,140.42,140.35,1.39290506]
[1767756159281,84.2,140.42,140.35,1.39290506]
[1767756159475,84.2,140.42,140.36,1.39290506]
[1767756160579,6.4141,140.41,140.36,1.39290506]
[1767756164783,6.4145,140.4,140.34,10.13782902]
[1767756165689,6.4145,140.4,140.35,1.39290506]
[1767756169802,6.4145,140.4,140.34,8.74492396]
[1767756170105,6.4145,140.4,140.34,10.13782902]
[1767756171398,6.415,140.39,140.34,10.13782902]
[1767756171599,2.66085495,140.41,140.33,8.74492396]
[1767756172092,2.66085495,140.41,140.33,10.13782902]
[1767756172701,6.4155,140.38,140.33,10.13782902]
[1767756174000,6.4149,140.39,140.33,10.13782902]
[1767756176299,6.4144,140.4,140.34,1.39290506]
[1767756176498,84.22,140.41,140.35,1.39290506]
[1767756177103,90.6343,140.41,140.35,1.39290506]
[1767756178603,6.4146,140.4,140.35,1.39290506]
[1767756178803,84.22,140.41,140.35,1.39290506]
[1767756179305,6.4153,140.38,140.34,8.74492396]
[1767756185410,6.4148,140.39,140.34,10.06932181]
[1767756185708,6.4148,140.39,140.35,1.32439785]
[1767756189413,6.4148,140.39,140.33,1.32439785]
[1767756190821,6.4153,140.38,140.32,8.74492396]
[1767756191021,2.66085495,140.39,140.31,1.32439785]
[1767756191920,2.66085495,140.39,140.32,1.32439785]
[1767756192221,86.88085495,140.41,140.32,1.32439785]
[1767756193523,2.66085495,140.39,140.3,16.48822181]
[1767756193726,2.66085495,140.39,140.3,1.32439785]
[1767756193924,2.66085495,140.37,140.28,1.32439785]
[1767756194321,84.22,140.36,140.28,1.32439785]
[1767756195425,84.22,140.36,140.29,1.32439785]
[1767756195629,6.4168,140.35,140.29,10.06932181]
[1767756199229,84.22,140.36,140.29,10.06932181]
[1767756200623,90.6362,140.36,140.29,10.06932181]
[1767756201033,84.22,140.36,140.29,10.06932181]
[1767756201233,84.22,140.36,140.29,1.32439785]
[1767756201428,84.22,140.36,140.28,8.74492396]
[1767756201932,84.22,140.36,140.28,10.06932181]
[1767756202135,6.4167,140.35,140.28,10.06932181]
[1767756203636,6.4167,140.35,140.28,16.48892181]
[1767756205228,6.4167,140.35,140.28,10.06932181]
[1767756205634,6.4172,140.34,140.28,1.32439785]
[1767756207930,6.4172,140.34,140.27,15.16522396]
[1767756208131,6.4172,140.34,140.27,16.48962181]
[1767756210938,6.4172,140.34,140.27,7.74469785]
[1767756211239,6.4176,140.33,140.27,1.32439785]
[1767756211438,2.66085495,140.35,140.26,8.74492396]
[1767756211631,2.66085495,140.35,140.26,1.39569636]
[1767756212232,6.4181,140.32,140.26,1.39569636]
[1767756213942,84.24,140.34,140.26,1.39569636]
[1767756215742,6.4176,140.33,140.26,7.81649636]
[1767756216039,9.07785495,140.35,140.28,1.39569636]
[1767756216243,90.677,140.35,140.28,1.39569636]
[1767756217447,90.677,140.35,140.28,7.81539636]
[1767756218151,93.33785495,140.35,140.28,1.39569636]
[1767756223251,9.07695495,140.37,140.29,1.39569636]
[1767756223441,84.26,140.36,140.29,1.39569636]
[1767756224042,84.26,140.36,140.29,7.81489636]
[1767756224244,90.6763,140.36,140.3,1.39569636]
[1767756225654,102.43765495,140.41,140.31,1.39569636]
[1767756225854,84.26,140.4,140.31,1.39569636]
[1767756226150,84.26,140.4,140.32,1.39569636]
[1767756227243,84.26,140.4,140.33,1.39569636]
[1767756228650,84.26,140.4,140.34,6.417]
[1767756229853,84.26,140.4,140.33,1.39569636]
[1767756231057,92.35698304,140.41,140.33,1.39569636]
[1767756231256,6.4144,140.4,140.33,7.81329636]
[1767756232458,6.415,140.39,140.33,1.39569636]
[1767756233248,6.4153,140.38,140.31,8.74492396]
[1767756233557,6.4153,140.38,140.3,10.14062032]
[1767756234058,1.70298304,140.33,140.27,10.14062032]
[1767756234251,1.70298304,140.31,140.25,10.14062032]
[1767756235449,1.70298304,140.31,140.26,6.4208]
[1767756237259,1.70298304,140.29,140.24,8.74492396]
[1767756237463,1.70298304,140.29,140.23,10.14062032]
[1767756238154,1.70298304,140.29,140.24,6.4217]
[1767756238555,1.70298304,140.31,140.25,1.29510344]
[1767756243062,1.70298304,140.32,140.26,1.28318199]
[1767756248260,1.70298304,140.34,140.26,1.28318199]
[1767756248562,1.70298304,140.36,140.29,1.28318199]
[1767756248766,8.11918304,140.36,140.3,1.28318199]
[1767756249162,1.70298304,140.36,140.3,1.28318199]
[1767756251266,6.416,140.37,140.3,1.28318199]
[1767756251870,6.416,140.37,140.3,7.70208199]
[1767756252664,1.70298304,140.38,140.32,1.28318199]
[1767756253267,1.70298304,140.38,140.32,7.70118199]
[1767756256273,1.70298304,140.38,140.33,6.4175]
[1767756257871,92.37738304,140.4,140.33,6.4175]
[1767756259169,90.6744,140.4,140.33,7.70068199]
[1767756259368,84.26,140.4,140.33,7.70068199]
[1767756260267,90.6744,140.4,140.33,7.70068199]
[1767756262970,90.6744,140.4,140.33,1.28318199]
[1767756266765,21.39,140.49,140.32,6.418]
[1767756266766,121.36421263,140.47,140.35,1.28318199]
[1767756266968,1.70298304,140.42,140.35,1.28318199]
[1767756268172,6.4139,140.41,140.35,1.28318199]
[1767756268374,1.70298304,140.4,140.33,1.28318199]
[1767756268679,84.24,140.41,140.33,1.28318199]
[1767756268874,1.70298304,140.4,140.33,1.28318199]
[1767756269371,6.4149,140.39,140.33,1.28318199]
[1767756270278,6.4143,140.41,140.34,1.28318199]
[1767756271575,6.4143,140.41,140.34,7.70028199]
[1767756273071,6.4144,140.4,140.34,7.70028199]
[1767756273272,1.70298304,140.4,140.34,7.70028199]
[1767756273679,1.70298304,140.4,140.34,1.28318199]
[1767756273876,1.70298304,140.38,140.34,1.28318199]
[1767756274278,1.70298304,140.38,140.32,7.75390152]
[1767756275071,1.70298304,140.38,140.33,1.33630152]
[1767756279873,8.11758304,140.4,140.33,1.33630152]
[1767756280578,1.70298304,140.4,140.34,1.33630152]
[1767756280885,92.33688304,140.42,140.34,1.33630152]
[1767756281578,92.33688304,140.42,140.35,6.4166]
[1767756281772,92.33688304,140.42,140.35,7.75290152]
[1767756282381,92.33688304,140.42,140.35,1.33630152]
[1767756282974,92.33688304,140.42,140.36,1.33630152]
[1767756284881,8.11688304,140.42,140.36,1.33630152]
[1767756286379,8.11688304,140.42,140.36,7.75240152]
[1767756287089,8.11688304,140.42,140.36,1.33630152]
[1767756287775,8.11688304,140.42,140.35,6.4166]
[1767756289086,8.11688304,140.42,140.35,7.75290152]
[1767756290684,6.4139,140.42,140.35,7.75290152]
[1767756291690,6.4139,140.42,140.36,1.33630152]
[1767756297795,84.22,140.44,140.38,1.33630152]
[1767756297988,84.22,140.44,140.38,10.08122548]
[1767756299679,2.66072014,140.43,140.36,5.98408647]
[1767756299986,2.66072014,140.43,140.34,1.23530693]
[1767756301690,6.4136,140.42,140.35,7.62228378]
[1767756303995,6.4136,140.42,140.35,1.20568378]
[1767756305094,6.4136,140.42,140.36,6.4162]
[1767756305289,86.86072014,140.43,140.36,6.4162]
[1767756306194,93.27372014,140.43,140.35,1.20568378]
[1767756306895,6.4135,140.42,140.35,7.62238378]
[1767756315904,6.4135,140.42,140.35,6.4167]
[1767756319202,86.86072014,140.43,140.35,6.4167]
[1767756319410,6.414,140.41,140.35,7.62238378]
[1767756322001,6.4126,140.44,140.38,7.62088378]
[1767756322410,84.22,140.46,140.38,7.62088378]
[1767756323312,6.4123,140.45,140.38,7.62088378]
[1767756323508,2.66072014,140.45,140.36,7.62138378]
[1767756324408,6.413,140.43,140.36,1.20568378]
[1767756326208,6.4135,140.42,140.36,1.20568378]
[1767756329619,6.4135,140.42,140.35,6.4166]
[1767756329915,6.4135,140.42,140.35,16.40255686]
[1767756331013,6.4135,140.42,140.36,1.20568378]
[1767756331215,6.4126,140.44,140.36,1.20568378]
[1767756331620,2.66072014,140.45,140.36,1.20568378]
[1767756331820,9.07392014,140.43,140.34,9.97038536]
[1767756332120,9.07392014,140.43,140.35,8.78027308]
[1767756332317,9.07392014,140.43,140.35,9.97038536]
[1767756332619,9.07392014,140.43,140.35,16.38698536]
[1767756332814,9.07392014,140.43,140.35,15.19687308]
[1767756333021,84.2,140.43,140.37,1.19011228]
[1767756335119,84.2,140.43,140.36,15.19647308]
[1767756335319,90.613,140.43,140.36,15.19647308]
[1767756337224,90.613,140.43,140.36,8.78027308]
[1767756338724,6.4135,140.42,140.36,8.78027308]
[1767756341226,6.414,140.41,140.36,8.78027308]
[1767756341826,6.414,140.41,140.35,1.19011228]
[1767756341827,2.66072014,140.41,140.33,1.19011228]
[1767756342127,6.4151,140.39,140.33,1.19011228]
[1767756343118,6.4144,140.4,140.33,1.19011228]
[1767756344522,6.4144,140.4,140.34,1.19011228]
[1767756347831,6.4149,140.39,140.34,1.19011228]
[1767756356140,1.70337028,140.4,140.34,1.19011228]
[1767756359448,8.11777028,140.4,140.33,6.4175]
[1767756359647,8.11777028,140.4,140.33,7.60761228]
[1767756361446,8.11777028,140.4,140.35,1.16242085]
[1767756361748,84.2,140.41,140.35,1.16242085]
[1767756362250,90.614,140.41,140.35,1.16242085]
[1767756364047,6.4145,140.4,140.35,1.16242085]
[1767756365347,8.11787028,140.4,140.35,1.16242085]
[1767756365534,1.70337028,140.4,140.35,1.16242085]
[1767756368650,8.11777028,140.4,140.33,7.53799808]
[1767756369049,1.70337028,140.38,140.32,19.55135917]
[1767756369349,1.70337028,140.36,140.3,1.12039808]
[1767756370149,84.22,140.37,140.32,1.12039808]
[1767756370852,84.22,140.37,140.32,7.53829808]
[1767756371558,1.70337028,140.38,140.32,7.53829808]
[1767756371749,85.92337028,140.38,140.32,7.53829808]
[1767756373351,1.70337028,140.36,140.31,8.76906399]
[1767756373652,1.70337028,140.36,140.3,16.30796207]
[1767756374051,1.70337028,140.36,140.31,7.53879808]
[1767756376256,1.70337028,140.36,140.32,6.418]
[1767756377258,1.70337028,140.36,140.31,1.12039808]
[1767756377556,1.70337028,140.37,140.31,1.12039808]
[1767756378557,1.70337028,140.37,140.31,7.53889808]
[1767756382462,8.11917028,140.37,140.31,1.12039808]
[1767756391066,1.70337028,140.35,140.3,8.76906399]
[1767756391369,1.70337028,140.33,140.28,9.88946207]
[1767756391767,1.70337028,140.33,140.28,1.12039808]
[1767756391959,1.70337028,140.31,140.26,9.8190198]
[1767756392472,1.70337028,140.31,140.26,1.04995581]
[1767756393172,1.70337028,140.31,140.25,8.76906399]
[1767756393469,1.70337028,140.31,140.26,1.04995581]
[1767756394372,1.70337028,140.31,140.26,7.47065581]
[1767756394567,6.418,140.32,140.26,1.04995581]
[1767756395568,6.418,140.32,140.27,1.04995581]
[1767756395767,84.24,140.33,140.27,1.04995581]
[1767756395961,1.70337028,140.32,140.25,8.76906399]
[1767756396162,1.70337028,140.28,140.24,1.04995581]
[1767756396365,1.70337028,140.28,140.22,1.04995581]
[1767756397967,1.70337028,140.26,140.22,1.04995581]
[1767756400169,6.4194,140.3,140.22,1.04995581]
[1767756400377,1.70337028,140.27,140.22,1.04995581]
[1767756401465,84.24,140.32,140.22,1.04995581]
[1767756401772,1.70337028,140.29,140.22,1.04995581]
[1767756402173,1.70337028,140.29,140.23,7.47185581]
[1767756404474,1.70337028,140.29,140.24,6.4216]
[1767756405385,101.59467028,140.25,140.13,1.04995581]
[1767756405691,1.70337028,140.19,140.13,1.04995581]
[1767756405981,85.98337028,140.19,140.11,7.47745581]
[1767756406385,92.40767028,140.19,140.11,1.04995581]
[1767756406580,84.28,140.18,140.11,1.04995581]
[1767756407186,84.28,140.18,140.07,101.71647028]
[1767756407187,84.28,140.18,140.1,1.04995581]
[1767756407385,85.98337028,140.18,140.11,1.04995581]
[1767756408274,92.40797028,140.18,140.11,1.04995581]
[1767756410380,1.70337028,140.16,140.11,1.04995581]
[1767756412578,93.37492585,140.18,140.11,1.04995581]
[1767756414796,86.95032585,140.18,140.11,1.04995581]
[1767756421578,84.28,140.18,140.11,1.04995581]
[1767756421786,84.34,140.2,140.12,0.98418269]
[1767756422292,90.7636,140.2,140.12,0.98418269]
[1767756422882,90.7636,140.2,140.12,7.41128269]
[1767756429592,93.43392585,140.2,140.12,7.41128269]
[1767756431893,93.43392585,140.2,140.13,7.41088269]
[1767756432292,93.43392585,140.2,140.13,0.98418269]
[1767756434298,6.424,140.19,140.13,0.98418269]
[1767756441605,6.424,140.19,140.13,7.41088269]
[1767756442006,21.05223207,140.25,140.15,0.98418269]
[1767756442192,2.67032585,140.24,140.15,0.98418269]
[1767756442701,6.4226,140.23,140.16,7.40938269]
[1767756444203,2.67032585,140.24,140.16,0.98418269]
[1767756444204,6.4227,140.22,140.16,0.98418269]
[1767756448008,6.4222,140.23,140.17,0.98418269]
[1767756452022,6.4222,140.23,140.16,6.4253]
[1767756452214,6.4222,140.23,140.16,7.349357]
[1767756453526,6.4222,140.23,140.17,0.924057]
[1767756456419,6.4222,140.23,140.16,6.4253]
[1767756456615,2.67032585,140.24,140.12,0.924057]
[1767756456616,2.67032585,140.2,140.12,0.924057]
[1767756457728,9.09382585,140.2,140.13,6.4267]
[1767756460426,9.09382585,140.2,140.13,7.350757]
[1767756461930,2.67032585,140.2,140.13,0.924057]
[1767756463529,6.4245,140.18,140.13,0.924057]
[1767756470329,2.67032585,140.2,140.13,0.924057]
[1767756470531,7.136,140.26,140.17,0.924057]
[1767756470833,6.4217,140.25,140.17,0.924057]
[1767756471033,6.4217,140.25,140.18,0.924057]
[1767756472537,6.4217,140.25,140.18,7.348457]
[1767756473336,21.85005388,140.28,140.19,0.924057]
[1767756473638,21.85005388,140.28,140.22,0.924057]
[1767756473842,1.70665543,140.29,140.22,0.924057]
[1767756474536,8.12645543,140.29,140.22,0.924057]
[1767756482342,8.12645543,140.29,140.21,6.423]
[1767756482537,8.12645543,140.29,140.21,7.13207451]
[1767756483134,6.42,140.28,140.2,0.70907451]
[1767756483338,1.70665543,140.27,140.2,0.70907451]
[1767756483733,1.70665543,140.25,140.18,9.36794851]
[1767756483938,1.70665543,140.25,140.18,0.70907451]
[1767756484631,8.12795543,140.25,140.18,0.70907451]
[1767756485841,8.12795543,140.25,140.18,7.13347451]
[1767756488645,8.12795543,140.25,140.18,0.70907451]
[1767756492048,8.12795543,140.25,140.18,7.13347451]
[1767756492945,8.12795543,140.25,140.19,0.70907451]
[1767756501058,6.4213,140.25,140.19,0.70907451]
[1767756502556,6.4213,140.25,140.18,6.4244]
[1767756502866,8.12835543,140.24,140.18,6.4244]
[1767756506764,6.4217,140.24,140.18,7.13347451]
[1767756509475,1.70665543,140.26,140.18,7.13347451]
[1767756510572,6.4212,140.25,140.18,7.13347451]
[1767756514278,6.4212,140.25,140.18,15.79234851]
[1767756516478,6.4208,140.26,140.19,0.60776651]
[1767756516784,8.12745543,140.26,140.19,0.60776651]
[1767756519584,8.12745543,140.26,140.2,0.60776651]
[1767756522086,6.4213,140.25,140.2,0.60776651]
[1767756528494,6.4213,140.25,140.19,9.26664051]
[1767756530702,6.4217,140.24,140.19,9.26664051]
[1767756532900,8.12835543,140.24,140.19,9.26664051]
[1767756534603,6.4217,140.24,140.19,8.658874]
[1767756535499,6.4222,140.23,140.19,8.658874]
[1767756539209,2.66722466,140.26,140.19,8.658874]
[1767756541200,6.4217,140.24,140.19,8.658874]
[1767756548503,99.8866,140.25,140.16,0.49761899]
[1767756548698,2.66722466,140.23,140.16,0.49761899]
[1767756549009,84.32,140.22,140.16,0.49761899]
[1767756549707,6.4232,140.21,140.16,0.49761899]
[1767756549908,9.09042466,140.21,140.16,0.49761899]
[1767756554611,84.32,140.22,140.16,0.49761899]
[1767756555513,84.32,140.22,140.16,6.92291899]
[1767756555710,84.32,140.22,140.17,0.49761899]
[1767756559312,84.32,140.22,140.17,6.92251899]
[1767756560613,84.32,140.22,140.18,6.92201899]
[1767756563518,84.32,140.24,140.18,6.92201899]
[1767756566919,84.32,140.24,140.18,6.4244]
[1767756567126,2.66722466,140.23,140.18,6.4244]
[1767756569221,2.66722466,140.23,140.16,6.92291899]
[1767756569525,2.66722466,140.23,140.17,0.49761899]
[1767756572724,9.08942466,140.23,140.17,0.49761899]
[1767756573127,2.66722466,140.23,140.18,0.47407918]
[1767756573625,2.66722466,140.23,140.16,0.47407918]
[1767756574226,9.08952466,140.23,140.16,6.89937918]
[1767756574818,9.08952466,140.23,140.17,0.47407918]
[1767756578123,9.08952466,140.23,140.17,6.89887918]
[1767756578330,2.66722466,140.23,140.17,6.89887918]
[1767756579131,84.32,140.24,140.18,6.89847918]
[1767756579829,2.66722466,140.23,140.18,0.47407918]
[1767756580326,2.66722466,140.23,140.16,15.70002947]
[1767756580736,2.66722466,140.21,140.16,15.22595029]
[1767756580929,2.66722466,140.21,140.15,8.80095029]
[1767756582130,2.66722466,140.19,140.14,0.47407918]
[1767756583730,2.66722466,140.19,140.14,6.90037918]
[1767756588033,2.66722466,140.21,140.15,0.47407918]
[1767756589638,2.66722466,140.19,140.14,6.4263]
[1767756589840,2.66722466,140.19,140.13,0.47407918]
[1767756591634,9.09032466,140.21,140.13,0.47407918]
[1767756592539,9.09032466,140.21,140.14,6.426]